[Event "Kvibergspelen 2018"]
[Site "Prioritet Serneke Arena, Krutvagen 2, Gothenburg, Sweden"]
[Date "2018.04.21"]
[Round "6.20"]
[White "Aroven, Mikael"]
[Black "Bergenwall, Henric"]
[Result "1/2-1/2"]
[TimeControl "15 minutes + 5 seconds per move from move one (Round 1 - 4) / 90 minutes + 30 seconds per move from move one (Round 5 - 8)"]
[WhiteFideId "1709534"]
[BlackFideId "1747924"]
[WhiteElo "2106"]
[BlackElo "1963"]

1. Nf3 {[%clk 01:30:40]} {[%emt 00:00:19]} Nf6 {[%clk 01:30:03]} {[%emt
00:00:58]} 2. c4 {[%clk 01:31:02]} {[%emt 00:00:08]} c5 {[%clk 01:29:51]}
{[%emt 00:00:42]} 3. e3 {[%clk 01:26:46]} {[%emt 00:04:46]} e6 {[%clk
01:28:04]} {[%emt 00:02:17]} 4. b3 {[%clk 01:25:34]} {[%emt 00:01:41]} Be7
{[%clk 01:26:58]} {[%emt 00:01:37]} 5. Bb2 {[%clk 01:24:59]} {[%emt 00:01:04]}
O-O {[%clk 01:26:06]} {[%emt 00:01:22]} 6. a3 {[%clk 01:21:29]} {[%emt
00:12:15]} b6 {[%clk 01:22:57]} 7. Nc3 {[%clk 01:21:14]} Bb7 {[%clk 01:21:31]}
8. Bd3 {[%clk 01:17:12]} {[%emt 00:02:37]} d5 {[%clk 01:17:53]} {[%emt
00:04:09]} 9. Qc2 {[%clk 01:16:52]} {[%emt 00:00:50]} h6 {[%clk 01:13:04]}
{[%emt 00:05:19]} 10. h3 {[%clk 01:16:57]} {[%emt 00:00:24]} Nbd7 {[%clk
01:09:54]} {[%emt 00:03:41]} 11. O-O {[%clk 01:11:57]} {[%emt 00:05:29]} d4
{[%clk 01:07:40]} {[%emt 00:02:44]} 12. Ne4 {[%clk 01:08:26]} {[%emt 00:04:02]}
dxe3 {[%clk 01:04:57]} {[%emt 00:03:13]} 13. dxe3 {[%clk 00:56:08]} {[%emt
00:12:47]} Nxe4 {[%clk 00:54:44]} {[%emt 00:10:43]} 14. Bxe4 {[%clk 00:55:45]}
{[%emt 00:00:53]} Bxe4 {[%clk 00:55:05]} {[%emt 00:00:09]} 15. Qxe4 {[%clk
00:56:10]} {[%emt 00:00:04]} Bf6 {[%clk 00:54:50]} {[%emt 00:00:46]} 16. Qc2
{[%clk 00:56:33]} {[%emt 00:00:07]} Qc7 {[%clk 00:54:13]} {[%emt 00:01:07]} 17.
Rfd1 {[%clk 00:54:26]} {[%emt 00:02:36]} Rad8 {[%clk 00:53:21]} {[%emt
00:01:22]} 18. Rd2 {[%clk 00:52:49]} {[%emt 00:02:07]} Bxb2 {[%clk 00:50:47]}
{[%emt 00:03:05]} 19. Qxb2 {[%clk 00:52:59]} {[%emt 00:00:20]} Nf6 {[%clk
00:50:52]} {[%emt 00:00:24]} 20. Rad1 {[%clk 00:44:11]} {[%emt 00:09:18]} Ne4
{[%clk 00:48:05]} {[%emt 00:03:18]} 21. Rd3 {[%clk 00:44:20]} {[%emt 00:00:20]}
Nf6 {[%clk 00:35:40]} {[%emt 00:12:56]} 22. Qe5 {[%clk 00:41:14]} {[%emt
00:03:33]} Qxe5 {[%clk 00:32:35]} {[%emt 00:03:38]} 23. Nxe5 {[%clk 00:41:38]}
{[%emt 00:00:05]} Rxd3 {[%clk 00:32:01]} {[%emt 00:01:04]} 24. Rxd3 {[%clk
00:42:02]} {[%emt 00:00:06]} Rc8 {[%clk 00:31:55]} {[%emt 00:00:36]} 25. f3
{[%clk 00:42:14]} {[%emt 00:00:18]} Kf8 {[%clk 00:31:53]} {[%emt 00:00:32]} 26.
Nd7+ {[%clk 00:42:05]} {[%emt 00:00:40]} Ke7 {[%clk 00:32:18]} {[%emt
00:00:04]} 27. Nxf6 {[%clk 00:42:09]} {[%emt 00:00:26]} gxf6 {[%clk 00:32:33]}
{[%emt 00:00:16]} 28. Kf2 {[%clk 00:41:19]} {[%emt 00:01:19]} a6 {[%clk
00:32:14]} {[%emt 00:00:50]} 29. e4 {[%clk 00:40:17]} {[%emt 00:01:31]} b5
{[%clk 00:30:14]} {[%emt 00:02:30]} 30. Rc3 {[%clk 00:36:42]} {[%emt 00:04:04]}
Kd6 {[%clk 00:30:09]} {[%emt 00:00:36]} 31. Rd3+ {[%clk 00:34:29]} {[%emt
00:02:43]} Kc6 {[%clk 00:30:33]} {[%emt 00:00:06]} 32. f4 {[%clk 00:18:15]}
{[%emt 00:16:44]} bxc4 33. bxc4 {[%clk 00:18:43]} Rb8 {[%clk 00:30:34]} {[%emt
00:00:31]} 34. e5 {[%clk 00:18:37]} {[%emt 00:00:37]} fxe5 {[%clk 00:30:15]}
{[%emt 00:00:49]} 35. fxe5 {[%clk 00:19:05]} {[%emt 00:00:02]} Rb2+ {[%clk
00:30:13]} {[%emt 00:00:31]} 36. Kf3 {[%clk 00:19:25]} {[%emt 00:00:11]} Kc7
{[%clk 00:30:23]} {[%emt 00:00:20]} 37. Kg3 {[%clk 00:14:06]} {[%emt 00:05:47]}
Rc2 {[%clk 00:30:07]} {[%emt 00:00:47]} 38. Rf3 {[%clk 00:14:30]} {[%emt
00:00:07]} Rxc4 {[%clk 00:30:05]} {[%emt 00:00:33]} 39. Rxf7+ {[%clk 00:14:59]}
Kc6 {[%clk 00:30:11]} {[%emt 00:00:24]} 40. Rf6 {[%clk 00:13:45]} {[%emt
00:01:43]} Kd5 {[%clk 00:30:36]} {[%emt 00:00:05]} 41. Rxh6 {[%clk 00:13:54]}
{[%emt 00:00:21]} Ra4 {[%clk 00:30:33]} {[%emt 00:00:33]} 42. h4 {[%clk
00:13:59]} {[%emt 00:00:25]} c4 {[%clk 00:30:56]} {[%emt 00:00:07]} 43. Kf4
{[%clk 00:13:22]} {[%emt 00:01:06]} c3+ {[%clk 00:31:01]} {[%emt 00:00:27]} 44.
Ke3 {[%clk 00:13:33]} {[%emt 00:00:20]} Rd4 {[%clk 00:31:22]} {[%emt 00:00:09]}
45. Rh8 {[%clk 00:13:50]} {[%emt 00:00:11]} c2 {[%clk 00:31:17]} {[%emt
00:00:37]} 46. Rc8 {[%clk 00:14:05]} {[%emt 00:00:15]} Rxh4 {[%clk 00:30:23]}
{[%emt 00:01:23]} 47. Rxc2 {[%clk 00:14:24]} {[%emt 00:00:12]} Ra4 {[%clk
00:29:28]} {[%emt 00:01:25]} 48. Rc3 {[%clk 00:14:33]} {[%emt 00:00:20]} Kxe5
{[%clk 00:29:33]} {[%emt 00:00:26]} 49. g3 {[%clk 00:13:15]} {[%emt 00:01:47]}
Kf5 {[%clk 00:29:10]} {[%emt 00:00:53]} 50. Kf3 {[%clk 00:10:33]} {[%emt
00:03:11]} e5 {[%clk 00:29:37]} {[%emt 00:00:04]} 1/2-1/2

[Event "Kvibergspelen 2018"]
[Site "Prioritet Serneke Arena, Krutvagen 2, Gothenburg, Sweden"]
[Date "2018.04.22"]
[Round "7.1"]
[White "Blomqvist, Erik"]
[Black "Lindberg, Bengt"]
[Result "1-0"]
[TimeControl "15 minutes + 5 seconds per move from move one (Round 1 - 4) / 90 minutes + 30 seconds per move from move one (Round 5 - 8)"]
[WhiteTitle "GM"]
[BlackTitle "IM"]
[WhiteFideId "1709437"]
[BlackFideId "1700359"]
[WhiteElo "2494"]
[BlackElo "2385"]

1. Nf3 {[%clk 01:30:57]} {[%emt 00:00:02]} Nf6 {[%clk 01:30:42]} {[%emt
00:00:19]} 2. c4 {[%clk 01:31:07]} {[%emt 00:00:19]} c5 {[%clk 01:30:50]}
{[%emt 00:00:22]} 3. Nc3 {[%clk 01:31:03]} {[%emt 00:00:35]} e6 {[%clk
01:30:56]} {[%emt 00:00:23]} 4. g3 {[%clk 01:30:53]} {[%emt 00:00:41]} b6
{[%clk 01:30:51]} {[%emt 00:00:35]} 5. Bg2 {[%clk 01:31:12]} {[%emt 00:00:10]}
Bb7 {[%clk 01:31:06]} {[%emt 00:00:15]} 6. O-O {[%clk 01:31:32]} {[%emt
00:00:10]} Be7 {[%clk 01:31:23]} {[%emt 00:00:12]} 7. d4 {[%clk 01:31:47]}
{[%emt 00:00:15]} cxd4 {[%clk 01:31:28]} {[%emt 00:00:26]} 8. Qxd4 {[%clk
01:32:09]} {[%emt 00:00:09]} d6 {[%clk 01:31:39]} {[%emt 00:00:18]} 9. Rd1
{[%clk 01:32:18]} {[%emt 00:00:20]} a6 {[%clk 01:30:13]} {[%emt 00:01:57]} 10.
Bg5 {[%clk 01:32:19]} {[%emt 00:00:29]} Nbd7 {[%clk 01:29:27]} {[%emt
00:01:15]} 11. Qd2 {[%clk 01:32:01]} {[%emt 00:00:49]} O-O {[%clk 01:26:22]}
{[%emt 00:03:34]} 12. Bf4 {[%clk 01:32:16]} {[%emt 00:00:15]} Ne8 {[%clk
01:23:52]} {[%emt 00:03:00]} 13. Rac1 {[%clk 01:32:27]} {[%emt 00:00:20]} Rc8
{[%clk 01:21:58]} {[%emt 00:02:23]} 14. b3 {[%clk 01:32:22]} {[%emt 00:00:35]}
Qc7 {[%clk 01:14:29]} {[%emt 00:07:59]} 15. Qe3 {[%clk 01:32:12]} {[%emt
00:00:41]} Qb8 {[%clk 01:09:22]} {[%emt 00:05:36]} 16. Bh3 {[%clk 01:31:52]}
{[%emt 00:00:51]} Bxf3 {[%clk 01:02:19]} {[%emt 00:07:34]} 17. exf3 {[%clk
01:30:44]} {[%emt 00:01:38]} Ne5 {[%clk 01:02:33]} {[%emt 00:00:16]} 18. Qe2
{[%clk 01:25:52]} {[%emt 00:05:22]} Nf6 {[%clk 01:01:49]} {[%emt 00:01:14]} 19.
Be3 {[%clk 01:23:43]} {[%emt 00:02:40]} g6 {[%clk 00:58:32]} {[%emt 00:03:46]}
20. f4 {[%clk 01:17:28]} {[%emt 00:06:46]} Ned7 {[%clk 00:57:35]} {[%emt
00:01:27]} 21. Bd4 {[%clk 01:12:00]} {[%emt 00:05:58]} Rfe8 {[%clk 00:51:19]}
{[%emt 00:06:45]} 22. Ne4 {[%clk 01:02:40]} {[%emt 00:09:51]} Nxe4 {[%clk
00:48:42]} {[%emt 00:03:07]} 23. Qxe4 {[%clk 01:03:05]} {[%emt 00:00:05]} Rcd8
{[%clk 00:41:07]} {[%emt 00:08:05]} 24. b4 {[%clk 01:00:21]} {[%emt 00:03:15]}
Bf8 {[%clk 00:35:00]} {[%emt 00:06:36]} 25. a3 {[%clk 00:55:40]} {[%emt
00:05:11]} a5 {[%clk 00:32:31]} {[%emt 00:02:58]} 26. Qc6 {[%clk 00:54:44]}
{[%emt 00:01:26]} Qa7 {[%clk 00:26:16]} {[%emt 00:06:45]} 27. Qb5 {[%clk
00:53:06]} {[%emt 00:02:09]} Qc7 {[%clk 00:25:23]} {[%emt 00:01:22]} 28. Bg2
{[%clk 00:46:33]} {[%emt 00:07:04]} Rc8 {[%clk 00:25:14]} {[%emt 00:00:38]} 29.
Be3 {[%clk 00:38:49]} {[%emt 00:08:15]} axb4 {[%clk 00:22:42]} {[%emt
00:03:02]} 30. axb4 {[%clk 00:39:14]} {[%emt 00:00:05]} Red8 {[%clk 00:22:00]}
{[%emt 00:01:11]} 31. Rd3 {[%clk 00:26:59]} {[%emt 00:12:45]} Be7 {[%clk
00:18:19]} {[%emt 00:04:10]} 32. Ra3 {[%clk 00:26:42]} {[%emt 00:00:48]} d5
{[%clk 00:14:30]} {[%emt 00:04:19]} 33. cxd5 {[%clk 00:26:37]} {[%emt
00:00:36]} Qxc1+ {[%clk 00:14:55]} {[%emt 00:00:05]} 34. Bxc1 {[%clk 00:27:02]}
{[%emt 00:00:05]} Rxc1+ {[%clk 00:15:22]} {[%emt 00:00:03]} 35. Bf1 {[%clk
00:27:25]} {[%emt 00:00:07]} Nf6 {[%clk 00:15:26]} {[%emt 00:00:25]} 36. dxe6
{[%clk 00:21:15]} {[%emt 00:06:40]} Rdd1 {[%clk 00:15:18]} {[%emt 00:00:38]} 37.
Kg2 {[%clk 00:19:47]} {[%emt 00:01:58]} Rxf1 {[%clk 00:15:12]} {[%emt
00:00:36]} 38. Ra7 {[%clk 00:19:34]} {[%emt 00:00:43]} Rg1+ {[%clk 00:11:23]}
{[%emt 00:04:19]} 39. Kh3 {[%clk 00:19:53]} {[%emt 00:00:09]} Kf8 {[%clk
00:11:33]} {[%emt 00:00:21]} 40. Qg5 {[%clk 00:14:26]} {[%emt 00:05:57]} fxe6
{[%clk 00:10:19]} {[%emt 00:01:44]} 41. Qh6+ {[%clk 00:14:43]} {[%emt
00:00:14]} Kf7 {[%clk 00:10:42]} {[%emt 00:00:06]} 42. Rxe7+ {[%clk 00:15:07]}
{[%emt 00:00:07]} Kxe7 {[%clk 00:11:08]} {[%emt 00:00:04]} 43. Qg7+ {[%clk
00:15:31]} {[%emt 00:00:07]} Kd6 {[%clk 00:10:14]} {[%emt 00:01:24]} 44. Qxf6
{[%clk 00:15:50]} {[%emt 00:00:11]} Rc7 {[%clk 00:07:38]} {[%emt 00:03:06]} 45.
b5 {[%clk 00:13:15]} {[%emt 00:03:05]} Rd7 {[%clk 00:05:53]} {[%emt 00:02:14]}
46. Qf8+ {[%clk 00:11:20]} {[%emt 00:02:25]} Kc7 {[%clk 00:05:57]} {[%emt
00:00:26]} 47. Qa8 {[%clk 00:11:24]} {[%emt 00:00:26]} Rgd1 {[%clk 00:04:27]}
{[%emt 00:02:00]} 48. Qc6+ {[%clk 00:11:01]} {[%emt 00:00:54]} Kd8 {[%clk
00:04:56]} {[%emt 00:00:01]} 49. Qxe6 {[%clk 00:07:21]} {[%emt 00:04:10]} R1d6
{[%clk 00:05:11]} {[%emt 00:00:14]} 50. Qe5 {[%clk 00:07:11]} {[%emt 00:00:40]}
Kc8 {[%clk 00:05:14]} {[%emt 00:00:27]} 51. f5 {[%clk 00:07:21]} {[%emt
00:00:21]} gxf5 {[%clk 00:04:55]} {[%emt 00:00:49]} 52. Qxf5 {[%clk 00:07:44]}
{[%emt 00:00:06]} Rd5 {[%clk 00:04:49]} {[%emt 00:00:36]} 53. Qe6 {[%clk
00:07:27]} {[%emt 00:00:46]} R5d6 {[%clk 00:05:04]} {[%emt 00:00:16]} 54. Qe4
{[%clk 00:07:18]} {[%emt 00:00:39]} Rd5 {[%clk 00:04:46]} {[%emt 00:00:49]} 55.
f4 {[%clk 00:06:37]} {[%emt 00:01:11]} Kc7 {[%clk 00:04:52]} {[%emt 00:00:24]}
56. Qa4 {[%clk 00:05:10]} {[%emt 00:01:57]} Kd6 {[%clk 00:04:25]} {[%emt
00:00:56]} 57. Qa3+ {[%clk 00:04:34]} {[%emt 00:01:06]} Ke6 {[%clk 00:03:24]}
{[%emt 00:01:31]} 58. Qe3+ {[%clk 00:04:58]} {[%emt 00:00:06]} Kf5 {[%clk
00:02:37]} {[%emt 00:01:18]} 59. Qxb6 {[%clk 00:03:48]} {[%emt 00:01:41]} R7d6
{[%clk 00:02:47]} {[%emt 00:00:19]} 60. Qc7 {[%clk 00:01:48]} {[%emt 00:02:30]}
Rh6 {[%clk 00:01:59]} {[%emt 00:01:17]} 61. Kg2 {[%clk 00:02:16]} {[%emt
00:00:02]} Rd2+ {[%clk 00:01:50]} {[%emt 00:00:38]} 62. Kf3 {[%clk 00:02:38]}
{[%emt 00:00:09]} Rd3+ {[%clk 00:02:10]} {[%emt 00:00:10]} 63. Ke2 {[%clk
00:02:53]} {[%emt 00:00:14]} Rdd6 {[%clk 00:02:30]} {[%emt 00:00:12]} 64. Qc8+
{[%clk 00:00:54]} {[%emt 00:02:30]} Ke4 {[%clk 00:02:04]} {[%emt 00:00:55]} 65.
Qc2+ {[%clk 00:01:08]} {[%emt 00:00:16]} Kd4 {[%clk 00:01:13]} {[%emt
00:01:21]} 66. Kf3 {[%clk 00:01:34]} {[%emt 00:00:04]} Rb6 {[%clk 00:01:08]}
{[%emt 00:00:35]} 67. Qc7 {[%clk 00:01:27]} {[%emt 00:00:37]} Rbe6 {[%clk
00:01:08]} {[%emt 00:00:30]} 68. h4 {[%clk 00:01:04]} {[%emt 00:00:53]} Kd3
{[%clk 00:00:50]} {[%emt 00:00:48]} 69. h5 {[%clk 00:01:16]} {[%emt 00:00:17]}
Kd2 {[%clk 00:00:44]} {[%emt 00:00:36]} 70. Kg4 {[%clk 00:01:17]} {[%emt
00:00:29]} Rb6 {[%clk 00:00:45]} {[%emt 00:00:30]} 71. Kg5 {[%clk 00:01:14]}
{[%emt 00:00:33]} Ke3 {[%clk 00:01:05]} {[%emt 00:00:10]} 72. g4 {[%clk
00:01:02]} {[%emt 00:00:41]} Kf3 {[%clk 00:01:25]} {[%emt 00:00:10]} 73. Qc3+
{[%clk 00:01:20]} {[%emt 00:00:13]} Kg2 {[%clk 00:01:46]} {[%emt 00:00:09]} 74.
Qd2+ {[%clk 00:01:29]} {[%emt 00:00:20]} Kg3 {[%clk 00:02:07]} {[%emt
00:00:09]} 75. Qd3+ {[%clk 00:01:54]} {[%emt 00:00:05]} Kg2 {[%clk 00:02:30]}
{[%emt 00:00:06]} 76. Kh4 {[%clk 00:02:04]} {[%emt 00:00:20]} Rbd6 {[%clk
00:02:37]} {[%emt 00:00:24]} 77. Qe2+ {[%clk 00:02:24]} {[%emt 00:00:10]} Kg1
{[%clk 00:02:50]} {[%emt 00:00:16]} 78. Kg3 {[%clk 00:02:46]} {[%emt 00:00:07]}
1-0

[Event "Kvibergspelen 2018"]
[Site "Prioritet Serneke Arena, Krutvagen 2, Gothenburg, Sweden"]
[Date "2018.04.22"]
[Round "7.2"]
[White "Ernst, Thomas"]
[Black "Pantzar, Milton"]
[Result "1/2-1/2"]
[TimeControl "15 minutes + 5 seconds per move from move one (Round 1 - 4) / 90 minutes + 30 seconds per move from move one (Round 5 - 8)"]
[WhiteTitle "GM"]
[BlackTitle "FM"]
[WhiteFideId "1700065"]
[BlackFideId "1721003"]
[WhiteElo "2366"]
[BlackElo "2295"]

1. e4 {[%clk 01:30:54]} {[%emt 00:00:04]} e5 {[%clk 01:30:51]} {[%emt
00:00:09]} 2. Nf3 {[%clk 01:31:16]} {[%emt 00:00:08]} Nf6 {[%clk 01:31:12]}
{[%emt 00:00:09]} 3. Nxe5 {[%clk 01:31:23]} {[%emt 00:00:23]} d6 {[%clk
01:31:37]} {[%emt 00:00:05]} 4. Nf3 {[%clk 01:31:37]} {[%emt 00:00:16]} Nxe4
{[%clk 01:31:55]} {[%emt 00:00:11]} 5. d4 {[%clk 01:31:53]} {[%emt 00:00:14]}
d5 {[%clk 01:32:06]} {[%emt 00:00:19]} 6. Bd3 {[%clk 01:31:58]} {[%emt
00:00:24]} Bd6 {[%clk 01:32:14]} {[%emt 00:00:22]} 7. O-O {[%clk 01:31:33]}
{[%emt 00:00:54]} O-O {[%clk 01:32:23]} {[%emt 00:00:21]} 8. c4 {[%clk
01:31:26]} {[%emt 00:00:37]} c6 {[%clk 01:32:12]} {[%emt 00:00:42]} 9. Qc2
{[%clk 01:31:42]} {[%emt 00:00:13]} Na6 {[%clk 01:31:19]} {[%emt 00:01:22]} 10.
a3 {[%clk 01:31:23]} {[%emt 00:00:50]} Bg4 {[%clk 01:31:05]} {[%emt 00:00:44]}
11. Ne5 {[%clk 01:26:44]} {[%emt 00:05:09]} Bxe5 {[%clk 01:31:06]} {[%emt
00:00:29]} 12. dxe5 {[%clk 01:27:09]} {[%emt 00:00:05]} Nac5 {[%clk 01:31:14]}
{[%emt 00:00:22]} 13. f3 {[%clk 01:26:51]} {[%emt 00:00:47]} Nxd3 {[%clk
01:31:07]} {[%emt 00:00:37]} 14. Qxd3 {[%clk 01:27:13]} {[%emt 00:00:09]} Nc5
{[%clk 01:31:22]} {[%emt 00:00:15]} 15. Qd4 {[%clk 01:27:22]} {[%emt 00:00:20]}
Nb3 {[%clk 01:31:27]} {[%emt 00:00:25]} 16. Qxg4 {[%clk 01:27:28]} {[%emt
00:00:24]} Nxa1 {[%clk 01:31:52]} {[%emt 00:00:05]} 17. Bh6 {[%clk 01:14:16]}
{[%emt 00:13:41]} g6 {[%clk 01:32:07]} {[%emt 00:00:16]} 18. Nc3 {[%clk
01:13:18]} {[%emt 00:01:27]} Qb6+ {[%clk 01:30:26]} {[%emt 00:02:11]} 19. Rf2
{[%clk 00:58:10]} {[%emt 00:15:38]} Rfe8 {[%clk 01:07:49]} {[%emt 00:23:08]} 20.
Qf4 {[%clk 00:56:34]} {[%emt 00:02:04]} f5 {[%clk 00:52:19]} {[%emt 00:16:02]}
21. cxd5 {[%clk 00:54:04]} {[%emt 00:02:59]} Rad8 {[%clk 00:51:37]} {[%emt
00:01:12]} 22. e6 {[%clk 00:49:22]} {[%emt 00:05:13]} cxd5 {[%clk 00:49:47]}
{[%emt 00:02:20]} 23. Qe5 {[%clk 00:49:08]} {[%emt 00:00:43]} Rd7 {[%clk
00:45:43]} {[%emt 00:04:35]} 24. Nxd5 {[%clk 00:49:13]} {[%emt 00:00:25]} Rxe6
{[%clk 00:44:07]} {[%emt 00:02:06]} 25. Nf6+ {[%clk 00:48:19]} {[%emt
00:01:23]} Kf7 {[%clk 00:44:04]} {[%emt 00:00:33]} 26. Nxd7 {[%clk 00:48:40]}
{[%emt 00:00:09]} Rxe5 {[%clk 00:43:29]} {[%emt 00:01:05]} 27. Nxb6 {[%clk
00:48:58]} {[%emt 00:00:13]} axb6 {[%clk 00:42:01]} {[%emt 00:01:58]} 28. Rd2
{[%clk 00:46:11]} {[%emt 00:03:15]} Nb3 {[%clk 00:38:22]} {[%emt 00:04:10]} 29.
Rd8 {[%clk 00:42:26]} {[%emt 00:04:15]} Re8 {[%clk 00:33:07]} {[%emt 00:05:45]}
30. Rxe8 {[%clk 00:40:07]} {[%emt 00:02:49]} Kxe8 {[%clk 00:33:32]} {[%emt
00:00:05]} 31. Kf2 {[%clk 00:40:22]} {[%emt 00:00:13]} Kd7 {[%clk 00:33:06]}
{[%emt 00:00:57]} 32. Ke3 {[%clk 00:40:36]} {[%emt 00:00:15]} Ke6 {[%clk
00:24:48]} {[%emt 00:08:49]} 33. h4 {[%clk 00:40:12]} {[%emt 00:00:53]} Kd5
{[%clk 00:24:38]} {[%emt 00:00:41]} 34. Kf4 {[%clk 00:37:08]} {[%emt 00:03:29]}
Ke6 {[%clk 00:18:19]} {[%emt 00:06:54]} 35. Bg7 {[%clk 00:34:15]} {[%emt
00:03:21]} h5 {[%clk 00:12:06]} {[%emt 00:06:46]} 36. a4 {[%clk 00:30:51]}
{[%emt 00:03:53]} Nc5 {[%clk 00:05:10]} {[%emt 00:07:27]} 37. Bd4 {[%clk
00:30:47]} {[%emt 00:00:33]} Nd7 {[%clk 00:02:55]} {[%emt 00:02:46]} 38. Kg5
{[%clk 00:28:14]} {[%emt 00:03:02]} Kf7 {[%clk 00:03:23]} {[%emt 00:00:03]} 39.
b4 {[%clk 00:27:33]} {[%emt 00:01:09]} b5 {[%clk 00:03:30]} {[%emt 00:00:25]}
40. axb5 {[%clk 00:27:56]} {[%emt 00:00:07]} Nf8 {[%clk 00:03:35]} {[%emt
00:00:25]} 41. Kf4 {[%clk 00:27:55]} {[%emt 00:00:30]} Ke6 {[%clk 00:03:38]}
{[%emt 00:00:27]} 42. Bb2 {[%clk 00:12:54]} {[%emt 00:15:30]} Nd7 {[%clk
00:03:53]} {[%emt 00:00:17]} 43. g4 {[%clk 00:12:52]} {[%emt 00:00:31]} fxg4
{[%clk 00:04:08]} {[%emt 00:00:16]} 44. fxg4 {[%clk 00:13:18]} {[%emt
00:00:04]} hxg4 {[%clk 00:04:33]} {[%emt 00:00:05]} 45. Kxg4 {[%clk 00:13:45]}
{[%emt 00:00:03]} Nb6 {[%clk 00:04:13]} {[%emt 00:00:50]} 46. Bd4 {[%clk
00:13:28]} {[%emt 00:00:47]} Nd7 {[%clk 00:04:08]} {[%emt 00:00:35]} 47. Kg5
{[%clk 00:12:11]} {[%emt 00:01:45]} Kf7 {[%clk 00:04:26]} {[%emt 00:00:14]} 48.
Kf4 {[%clk 00:12:32]} {[%emt 00:00:09]} Ke6 {[%clk 00:04:35]} {[%emt 00:00:21]}
49. Ke4 {[%clk 00:12:46]} {[%emt 00:00:14]} Nf8 {[%clk 00:04:33]} {[%emt
00:00:35]} 50. Bg7 {[%clk 00:12:43]} {[%emt 00:00:30]} Nd7 {[%clk 00:04:53]}
{[%emt 00:00:12]} 51. Kd4 {[%clk 00:13:00]} {[%emt 00:00:13]} Nb6 {[%clk
00:04:36]} {[%emt 00:00:47]} 52. Bh6 {[%clk 00:12:49]} {[%emt 00:00:39]} Nd7
{[%clk 00:04:45]} {[%emt 00:00:23]} 53. Bg5 {[%clk 00:12:28]} {[%emt 00:00:49]}
Nb6 {[%clk 00:05:01]} {[%emt 00:00:16]} 54. Bd8 {[%clk 00:12:31]} {[%emt
00:00:24]} Nd7 {[%clk 00:05:13]} {[%emt 00:00:21]} 55. Ke4 {[%clk 00:12:12]}
{[%emt 00:00:46]} Nf8 {[%clk 00:03:47]} {[%emt 00:01:59]} 56. Kf4 {[%clk
00:12:17]} {[%emt 00:00:22]} Nh7 {[%clk 00:03:17]} {[%emt 00:01:03]} 57. Bb6
{[%clk 00:12:14]} {[%emt 00:00:31]} Nf8 {[%clk 00:03:27]} {[%emt 00:00:22]} 58.
Bc5 {[%clk 00:09:21]} {[%emt 00:03:22]} Nd7 {[%clk 00:03:34]} {[%emt 00:00:25]}
59. Ke4 {[%clk 00:09:19]} {[%emt 00:00:29]} Nf6+ {[%clk 00:03:38]} {[%emt
00:00:28]} 60. Kf4 {[%clk 00:09:27]} {[%emt 00:00:21]} Nd7 {[%clk 00:04:01]}
{[%emt 00:00:09]} 1/2-1/2